fUSD/lending_fUSD_20240720
["ID","MTS","AMOUNT","RATE_DAILY","PERIOD"]
[332698025,1721454645321,-500.0,0.00032876,14]
[332698026,1721454645330,-500.0,0.00032876,14]
[332698027,1721454645339,-500.52309438,0.00032876,14]
[332698028,1721454645349,-508.65408883,0.00032876,14]
[332698029,1721454645358,-500.8998929,0.00032876,14]
[332698031,1721454645368,-500.0,0.00032876,30]
[332698033,1721454645377,-500.0,0.00032876,14]
[332698034,1721454645387,-500.0,0.00032876,30]
[332698035,1721454645397,-500.0,0.00032876,30]
[332698036,1721454645406,-500.0,0.00032876,30]
[332698037,1721454645415,-500.0,0.00032876,30]
[332698038,1721454645424,-500.0,0.00032876,30]
[332698039,1721454645433,-500.0,0.00032876,30]
[332698040,1721454645442,-500.0,0.00032876,30]
[332698041,1721454645452,-500.0,0.00032876,30]
[332698042,1721454645461,-500.0,0.00032876,30]
[332698043,1721454645469,-525.89332495,0.00032876,14]
[332698044,1721454645479,-500.0,0.00032876,30]
[332698045,1721454645488,-500.0,0.00032876,30]
[332698047,1721454645497,-500.0,0.00032876,30]
[332698049,1721454645505,-500.0,0.00032876,30]
[332698050,1721454645514,-500.0,0.00032876,30]
[332698051,1721454645523,-500.0,0.00032876,30]
[332698052,1721454645532,-500.0,0.00032876,14]
[332698053,1721454645540,-500.0,0.00032876,30]
[332698054,1721454645549,-500.0,0.00032876,14]
[332698055,1721454645558,-500.78952582,0.00032876,14]
[332698056,1721454645568,-500.0,0.00032876,30]
[332698057,1721454645577,-500.0,0.00032876,30]
[332698058,1721454645586,-500.0,0.00032876,30]
[332698059,1721454645595,-530.52,0.00032876,14]
[332698060,1721454645604,-500.0,0.00032876,14]
[332698061,1721454645613,-500.0,0.00032876,14]
[332698062,1721454645622,-500.0,0.00032876,14]
[332698063,1721454645633,-500.0,0.00032876,14]
[332698064,1721454645642,-274.47399316,0.00032876,14]
[332698065,1721454645652,-500.0,0.00032876,14]
[332698066,1721454645662,-500.62376938,0.00032876,14]
[332698067,1721454645671,-500.0,0.00032876,14]
[332698068,1721454645680,-536.56472845,0.00032876,14]
[332698069,1721454645689,-500.0,0.00032876,14]
[332698070,1721454645698,-619.92617135,0.00032876,14]
[332698071,1721454645706,-175.59743564,0.00032876,14]
[332698072,1721454645715,-500.0,0.00032876,14]
[332698073,1721454645724,-503.81,0.00032876,14]
[332698074,1721454645733,-500.0,0.00032876,14]
[332698075,1721454645742,-536.19,0.00032876,14]
[332698076,1721454645751,-191.9126521,0.00032876,14]
[332698077,1721454645760,-500.0,0.00032876,14]
[332698078,1721454645769,-501.10186617,0.00032876,14]
[332698079,1721454645778,-501.07762536,0.00032876,14]
[332698080,1721454645787,-500.0,0.00032876,14]
[332698081,1721454645797,-500.0,0.00032876,14]
[332698082,1721454645807,-367.20075161,0.00032876,14]
[332698083,1721454645817,-500.0,0.00032876,14]
[332698084,1721454645826,-500.34920654,0.00032876,14]
[332698085,1721454645835,-500.0,0.00032876,14]
[332698086,1721454645845,-500.0,0.00032876,14]
[332698087,1721454645854,-500.0,0.00032876,14]
[332698088,1721454645862,-500.0,0.00032876,14]
[332698089,1721454645871,-500.0,0.00032876,14]
[332698090,1721454645880,-500.0,0.00032876,14]
[332698091,1721454645890,-500.0,0.00032876,14]
[332698092,1721454645899,-500.0,0.00032876,14]
[332698093,1721454645908,-500.0,0.00032876,14]
[332698094,1721454645917,-500.80085963,0.00032876,14]
[332698095,1721454645927,-602.73,0.00032876,14]
[332698096,1721454645936,-500.0,0.00032876,14]
[332698097,1721454645946,-500.0,0.00032876,14]
[332698098,1721454645956,-500.0,0.00032876,14]
[332698099,1721454645966,-500.0,0.00032876,14]
[332698100,1721454645976,-501.02109001,0.00032876,14]
[332698101,1721454645985,-694.11,0.00032876,14]
[332698103,1721454645994,-976.13,0.00032876,14]
[332698105,1721454646004,-500.50936537,0.00032876,14]
[332698107,1721454646013,-500.0,0.00032876,14]
[332698109,1721454646023,-586.56,0.00032876,14]
[332698111,1721454646032,-500.0,0.00032876,14]
[332698113,1721454646042,-500.0,0.00032876,14]
[332698115,1721454646052,-500.0,0.00032876,14]
[332698117,1721454646063,-956.44,0.00032876,14]
[332698119,1721454646072,-500.0,0.00032876,14]
[332698121,1721454646082,-500.0,0.00032876,14]
[332698123,1721454646091,-546.24,0.00032876,14]
[332698125,1721454646100,-500.0,0.00032876,14]
[332698127,1721454646111,-597.63,0.00032876,14]
[332698129,1721454646121,-500.0,0.00032876,14]
[332698131,1721454646130,-500.0,0.00032876,14]
[332698133,1721454646140,-649.06470048,0.00032876,14]
[332698135,1721454646150,-578.97,0.00032876,14]
[332698136,1721454646160,-500.0,0.00032876,14]
[332698137,1721454646170,-501.63452654,0.00032876,14]
[332698138,1721454646181,-500.0,0.00032876,14]
[332698139,1721454646190,-500.0,0.00032876,14]
[332698140,1721454646200,-500.0,0.00032876,14]
[332698141,1721454646213,-500.0,0.00032876,14]
[332698142,1721454646224,-500.50278707,0.00032876,14]
[332698143,1721454646234,-500.0,0.00032876,14]
[332698144,1721454646243,-500.0,0.00032876,14]
[332698145,1721454646254,-501.14210409,0.00032876,14]
[332698146,1721454646265,-504.53894274,0.00032876,14]
[332698147,1721454646274,-500.0,0.00032876,14]
[332698148,1721454646283,-512.8389155,0.00032876,14]
[332698149,1721454646293,-503.62782685,0.00032876,14]
[332698150,1721454646303,-500.0,0.00032876,14]
[332698151,1721454646316,-500.0,0.00032876,14]
[332698152,1721454646326,-500.0,0.00032876,14]
[332698153,1721454646335,-500.0,0.00032876,2]
[332698154,1721454646347,-500.0,0.00032876,14]
[332698155,1721454646359,-501.96282304,0.00032876,14]
[332698156,1721454646368,-260.55637899,0.00032876,14]
[332698157,1721454646378,-500.0,0.00032876,14]
[332698158,1721454646387,-500.0,0.00032876,14]
[332698159,1721454646397,-500.0,0.00032876,14]
[332698160,1721454646407,-500.0,0.00032876,14]
[332698161,1721454646416,-500.0,0.00032876,14]
[332698162,1721454646425,-500.0,0.00032876,14]
[332698163,1721454646434,-500.0,0.00032876,14]
[332698164,1721454646444,-500.0,0.00032876,14]
[332698165,1721454646453,-500.0,0.00032876,14]
[332698166,1721454646463,-500.0,0.00032876,14]
[332698167,1721454646472,-500.0,0.00032876,14]
[332698168,1721454646481,-500.0,0.00032876,14]
[332698169,1721454646491,-454.05552565,0.00032876,14]
[332698170,1721454646500,-500.0,0.00032876,14]
[332698171,1721454646509,-500.0,0.00032876,14]
[332698172,1721454646519,-1139.65,0.00032876,14]
[332698173,1721454646529,-500.0,0.00032876,14]
[332698174,1721454646538,-500.0,0.00032876,14]
[332698175,1721454646547,-500.0,0.00032876,14]
[332698176,1721454646557,-594.81,0.00032876,14]
[332698177,1721454646567,-500.34625164,0.00032876,14]
[332698178,1721454646577,-159.87870512,0.00032876,14]
[332698179,1721454646586,-1160.02,0.00032876,14]
[332698180,1721454646595,-500.42575581,0.00032876,14]
[332698181,1721454646604,-500.0,0.00032876,14]
[332698182,1721454646613,-533.4,0.00032876,14]
[332698183,1721454646623,-500.0,0.00032876,14]
[332698184,1721454646632,-505.11714361,0.00032876,14]
[332698185,1721454646641,-500.0,0.00032876,14]
[332698186,1721454646650,-500.51764758,0.00032876,14]
[332698187,1721454646660,-500.0,0.00032876,14]
[332698188,1721454646669,-500.0,0.00032876,14]
[332698189,1721454646678,-500.0,0.00032876,14]
[332698190,1721454646687,-1635.03,0.00032876,14]
[332698191,1721454646695,-500.0,0.00032876,14]
[332698192,1721454646704,-500.0,0.00032876,14]
[332698193,1721454646714,-500.0,0.00032876,14]
[332698194,1721454646723,-874.14,0.00032876,14]
[332698195,1721454646732,-500.0,0.00032876,14]
[332698196,1721454646741,-500.0,0.00032876,14]
[332698197,1721454646751,-901.37,0.00032876,14]
[332698198,1721454646759,-500.0,0.00032876,14]
[332698199,1721454646768,-829.22,0.00032876,14]
[332698200,1721454646778,-500.0,0.00032876,14]
[332698201,1721454646787,-500.0,0.00032876,14]
[332698202,1721454646797,-500.51135854,0.00032876,14]
[332698203,1721454646806,-500.0,0.00032876,14]
[332698204,1721454646816,-500.0,0.00032876,14]
[332698205,1721454646827,-500.0,0.00032876,14]
[332698206,1721454646836,-1308.18,0.00032876,14]
[332698207,1721454646846,-500.0,0.00032876,14]
[332698208,1721454646855,-500.0,0.00032876,14]
[332698209,1721454646864,-500.0,0.00032876,14]
[332698210,1721454646873,-500.0,0.00032876,14]
[332698211,1721454646882,-514.12523279,0.00032876,14]
[332698212,1721454646891,-500.0,0.00032876,14]
[332698213,1721454646901,-843.1,0.00032876,14]
[332698214,1721454646910,-500.0,0.00032876,14]
[332698215,1721454646920,-500.0,0.00032876,14]
[332698216,1721454646929,-500.0,0.00032876,14]
[332698217,1721454646939,-500.0,0.00032876,14]
[332698218,1721454646954,-500.0,0.00032876,14]
[332698219,1721454646963,-500.0,0.00032876,14]
[332698220,1721454646973,-500.0,0.00032876,14]
[332698221,1721454646982,-500.0,0.00032876,14]
[332698222,1721454646992,-500.0,0.00032876,14]
[332698223,1721454647002,-500.40053577,0.00032876,14]
[332698224,1721454647012,-500.0,0.00032876,14]
[332698225,1721454647022,-500.0,0.00032876,14]
[332698226,1721454647032,-500.0,0.00032876,14]
[332698227,1721454647041,-635.71,0.00032876,14]
[332698228,1721454647052,-500.0,0.00032876,14]
[332698229,1721454647062,-500.0,0.00032876,14]
[332698230,1721454647073,-500.0,0.00032876,14]
[332698231,1721454647082,-500.0,0.00032876,14]
[332698232,1721454647091,-683.53,0.00032876,14]
[332698233,1721454647100,-500.0,0.00032876,14]
[332698234,1721454647110,-500.0,0.00032876,14]
[332698235,1721454647121,-876.85,0.00032876,14]
[332698236,1721454647131,-500.0,0.00032876,14]
[332698237,1721454647142,-500.0,0.00032876,14]
[332698238,1721454647154,-201.73848907,0.00032876,14]
[332698239,1721454647165,-935.95,0.00032876,14]
[332698240,1721454647175,-500.0,0.00032876,14]
[332698241,1721454647184,-500.0,0.00032876,14]
[332698242,1721454647196,-500.0,0.00032876,14]
[332698243,1721454647209,-502.65910653,0.00032876,14]
[332698244,1721454647219,-500.36939275,0.00032876,14]
[332698245,1721454647230,-500.0,0.00032876,14]
[332698246,1721454647241,-500.0,0.00032876,14]
[332698247,1721454647250,-500.0,0.00032876,14]
[332698248,1721454647261,-500.0,0.00032876,14]
[332698249,1721454647272,-500.0,0.00032876,14]
[332698250,1721454647282,-745.54,0.00032876,14]
[332698251,1721454647293,-500.0,0.00032876,14]
[332698252,1721454647306,-500.0,0.00032876,14]
[332698253,1721454647317,-636.69,0.00032876,14]
[332698254,1721454647328,-500.64816927,0.00032876,2]
[332698255,1721454647338,-500.0,0.00032876,14]
[332698256,1721454647348,-512.91507337,0.00032876,14]
[332698257,1721454647358,-500.0,0.00032876,14]
[332698258,1721454647369,-500.0,0.00032876,14]
[332698259,1721454647379,-500.0,0.00032876,14]
[332698260,1721454647391,-500.0,0.00032876,14]
[332698261,1721454647560,-500.0,0.00032876,14]
[332698262,1721454647571,-500.0,0.00032876,14]
[332698263,1721454647581,-898.66,0.00032876,14]
[332698264,1721454647590,-500.0,0.00032876,14]
[332698265,1721454647601,-769.28,0.00032876,14]
[332698266,1721454647612,-500.0,0.00032876,14]
[332698267,1721454647622,-500.0,0.00032876,14]
[332698268,1721454647631,-500.0,0.00032876,14]
[332698269,1721454647642,-1079.35,0.00032876,14]
[332698270,1721454647653,-490.33447273,0.00032876,14]
[332698271,1721454647664,-710.01,0.00032876,14]
[332698272,1721454647674,-500.0,0.00032876,14]
[332698273,1721454647684,-500.0,0.00032876,14]
[332698274,1721454647695,-1222.45,0.00032876,14]
[332698275,1721454647706,-500.0,0.00032876,14]
[332698276,1721454647716,-1172.59,0.00032876,14]
[332698277,1721454647725,-500.0,0.00032876,14]
[332698278,1721454647735,-649.18310206,0.00032876,14]
[332698279,1721454647745,-500.0,0.00032876,14]
[332698280,1721454647754,-500.0,0.00032876,14]
[332698281,1721454647764,-500.0,0.00032876,14]
[332698282,1721454647773,-500.0,0.00032876,14]
[332698283,1721454647782,-579.49,0.00032876,14]
[332698284,1721454647792,-500.0,0.00032876,14]
[332698285,1721454647801,-500.0,0.00032876,14]
[332698286,1721454647811,-1056.79,0.00032876,14]
[332698287,1721454647822,-500.0,0.00032876,14]
[332698288,1721454647833,-807.94,0.00032876,14]
[332698289,1721454647843,-500.0,0.00032876,14]
[332698290,1721454647855,-500.0,0.00032876,14]
[332698291,1721454647867,-1358.25,0.00032876,14]
[332698292,1721454647876,-500.0,0.00032876,14]
[332698293,1721454647886,-500.0,0.00032876,14]
[332698294,1721454647895,-500.0,0.00032876,14]
[332698295,1721454647905,-500.0,0.00032876,14]
[332698296,1721454647915,-500.0,0.00032876,14]
[332698297,1721454647924,-500.0,0.00032876,14]
[332698298,1721454647937,-1130.8,0.00032876,14]
[332698299,1721454647947,-500.0,0.00032876,14]
[332698300,1721454647957,-500.0,0.00032876,14]
[332698301,1721454647968,-500.0,0.00032876,14]
[332698302,1721454647977,-500.0,0.00032876,14]
[332698303,1721454647987,-870.92,0.00032876,14]
[332698304,1721454647996,-500.83261968,0.00032876,14]
[332698305,1721454648006,-500.0,0.00032876,14]
[332698306,1721454648015,-500.0,0.00032876,14]
[332698307,1721454648024,-500.0,0.00032876,14]
[332698308,1721454648034,-500.0,0.00032876,14]
[332698309,1721454648044,-500.0,0.00032876,14]
[332698310,1721454648054,-500.0,0.00032876,14]
[332698311,1721454648064,-500.0,0.00032876,14]
[332698312,1721454648073,-500.0,0.00032876,14]
[332698313,1721454648083,-500.0,0.00032876,14]
[332698314,1721454648093,-500.0,0.00032876,14]
[332698315,1721454648103,-500.0,0.00032876,14]
[332698316,1721454648113,-500.0,0.00032876,14]
[332698317,1721454648123,-500.0,0.00032876,14]
[332698318,1721454648132,-500.0,0.00032876,14]
[332698319,1721454648142,-500.0,0.00032876,14]
[332698320,1721454648151,-500.0,0.00032876,14]
[332698321,1721454648162,-969.05,0.00032876,14]
[332698322,1721454648171,-500.0,0.00032876,14]
[332698323,1721454648181,-500.0,0.00032876,14]
[332698324,1721454648190,-500.0,0.00032876,14]
[332698325,1721454648200,-761.91,0.00032876,14]
[332698326,1721454648210,-500.0,0.00032876,14]
[332698327,1721454648219,-642.69,0.00032876,14]
[332698328,1721454648229,-893.09,0.00032876,14]
[332698329,1721454648239,-500.0,0.00032876,14]
[332698330,1721454648249,-500.0,0.00032876,14]
[332698331,1721454648259,-500.0,0.00032876,14]
[332698332,1721454648269,-500.0,0.00032876,14]
[332698333,1721454648280,-509.5084589,0.00032876,14]
[332698334,1721454648289,-500.0,0.00032876,14]
[332698335,1721454648299,-597.63,0.00032876,14]
[332698336,1721454648313,-500.0,0.00032876,14]
[332698337,1721454648323,-500.0,0.00032876,14]
[332698338,1721454648335,-500.0,0.00032876,14]
[332698339,1721454648345,-500.41846177,0.00032876,14]
[332698340,1721454648356,-501.1667053,0.00032876,14]
[332698341,1721454648366,-500.0,0.00032876,14]
[332698342,1721454648375,-500.0,0.00032876,14]
[332698343,1721454648387,-500.0,0.00032876,14]
[332698344,1721454648397,-501.34810033,0.00032876,14]
[332698345,1721454648407,-598.13,0.00032876,14]
[332698346,1721454648417,-500.72652552,0.00032876,14]
[332698347,1721454648427,-500.0,0.00032876,14]
[332698348,1721454648437,-500.0,0.00032876,14]
[332698349,1721454648447,-500.0,0.00032876,14]
[332698350,1721454648457,-500.0,0.00032876,14]
[332698351,1721454648466,-972.69,0.00032876,14]
[332698352,1721454648476,-500.0,0.00032876,14]
[332698353,1721454648486,-1697.94,0.00032876,14]
[332698354,1721454648495,-500.0,0.00032876,14]
[332698355,1721454648505,-500.0,0.00032876,14]
[332698356,1721454648514,-500.0,0.00032876,14]
[332698357,1721454648524,-500.0,0.00032876,14]
[332698358,1721454648534,-500.0,0.00032876,14]
[332698359,1721454648544,-500.0,0.00032876,14]
[332698360,1721454648554,-504.76240457,0.00032876,14]
[332698361,1721454648564,-500.0,0.00032876,14]
[332698362,1721454648574,-500.0,0.00032876,14]
[332698363,1721454648585,-500.0,0.00032876,14]
[332698364,1721454648595,-500.0,0.00032876,14]
[332698365,1721454648605,-500.0,0.00032876,14]
[332698366,1721454648615,-1191.04,0.00032876,14]
[332698367,1721454648626,-500.0,0.00032876,14]
[332698368,1721454648636,-500.0,0.00032876,14]
[332698369,1721454648646,-500.0,0.00032876,14]
[332698370,1721454648656,-500.0,0.00032876,14]
[332698371,1721454648665,-500.0,0.00032876,14]
[332698372,1721454648674,-500.0,0.00032876,14]
[332698373,1721454648683,-500.0,0.00032876,14]
[332698374,1721454648693,-502.32,0.00032876,14]
[332698375,1721454648702,-500.0,0.00032876,14]
[332698376,1721454648712,-500.0,0.00032876,14]
[332698377,1721454648722,-500.0,0.00032876,14]
[332698378,1721454648732,-500.0,0.00032876,14]
[332698379,1721454648741,-500.0,0.00032876,14]
[332698380,1721454648751,-500.77719186,0.00032876,14]
[332698381,1721454648761,-500.0,0.00032876,14]
[332698382,1721454648770,-500.0,0.00032876,14]
[332698383,1721454648779,-500.0,0.00032876,14]
[332698384,1721454648788,-19528.18116954,0.00032876,2]
[332698385,1721454648797,-500.0,0.00032876,14]
[332698386,1721454648807,-627.33,0.00032876,14]
[332698387,1721454648817,-500.0,0.00032876,14]
[332698388,1721454648826,-500.69492081,0.00032876,14]
[332698389,1721454648836,-500.0,0.00032876,14]
[332698390,1721454648845,-500.0,0.00032876,14]
[332698391,1721454648855,-500.0,0.00032876,14]
[332698392,1721454648865,-1434.76,0.00032876,14]
[332698393,1721454648876,-500.0,0.00032876,14]
[332698394,1721454648886,-685.1,0.00032876,14]
[332698395,1721454648896,-500.0,0.00032876,14]
[332698396,1721454648906,-500.0,0.00032876,14]
[332698397,1721454648916,-500.0,0.00032876,14]
[332698398,1721454648925,-500.0,0.00032876,14]
[332698399,1721454648936,-500.0,0.00032876,14]
[332698400,1721454648947,-500.0,0.00032876,7]
[332698401,1721454648957,-500.0,0.00032876,14]
[332698402,1721454648968,-500.0,0.00032876,14]
[332698403,1721454648978,-689.63,0.00032876,14]
[332698404,1721454648988,-518.35,0.00032876,14]
[332698405,1721454648999,-500.0,0.00032876,14]
[332698406,1721454649010,-690.62,0.00032876,14]
[332698407,1721454649020,-500.0,0.00032876,14]
[332698408,1721454649031,-500.0,0.00032876,14]
[332698409,1721454649042,-500.0,0.00032876,14]
[332698410,1721454649052,-500.0,0.00032876,14]
[332698411,1721454649062,-500.0,0.00032876,14]
[332698412,1721454649072,-1590.11,0.00032876,14]
[332698413,1721454649084,-500.0,0.00032876,14]
[332698414,1721454649094,-763.13,0.00032876,14]
[332698415,1721454649105,-500.0,0.00032876,14]
[332698416,1721454649116,-500.0,0.00032876,14]
[332698417,1721454649127,-500.0,0.00032876,14]
[332698418,1721454649137,-559.09,0.00032876,14]
[332698419,1721454649148,-500.0,0.00032876,14]
[332698420,1721454649159,-662.09,0.00032876,14]
[332698421,1721454649170,-500.0,0.00032876,14]
[332698422,1721454649180,-844.23,0.00032876,14]
[332698423,1721454649190,-500.0,0.00032876,14]
[332698424,1721454649200,-500.0,0.00032876,14]
[332698425,1721454649210,-531.67,0.00032876,14]
[332698426,1721454649220,-503.18756627,0.00032876,14]
[332698427,1721454649231,-500.0,0.00032876,14]
[332698428,1721454649240,-914.64,0.00032876,14]
[332698429,1721454649251,-500.0,0.00032876,14]
[332698430,1721454649261,-500.0,0.00032876,14]
[332698431,1721454649272,-500.0,0.00032876,14]
[332698432,1721454649283,-500.82119734,0.00032876,14]
[332698433,1721454649293,-500.0,0.00032876,14]
[332698434,1721454649305,-500.0,0.00032876,14]
[332698435,1721454649317,-500.0,0.00032876,14]
[332698436,1721454649328,-647.26,0.00032876,14]
[332698437,1721454649338,-502.63556494,0.00032876,14]
[332698438,1721454649348,-500.0,0.00032876,14]
[332698439,1721454649359,-1027.47,0.00032876,14]
[332698440,1721454649369,-600.45,0.00032876,14]
[332698441,1721454649379,-500.0,0.00032876,14]
[332698442,1721454649389,-500.0,0.00032876,14]
[332698443,1721454649400,-613.0,0.00032876,14]
[332698444,1721454649410,-656.88,0.00032876,14]
[332698445,1721454649420,-633.44,0.00032876,14]
[332698446,1721454649431,-503.18643766,0.00032876,14]
[332698447,1721454649441,-500.0,0.00032876,14]
[332698448,1721454649451,-500.0,0.00032876,14]
[332698449,1721454649462,-500.0,0.00032876,14]
[332698450,1721454649488,-500.0,0.00032876,14]
[332698451,1721454649498,-1000.0,0.00032876,14]
[332698452,1721454649508,-1003.56,0.00032876,14]
[332698453,1721454649518,-500.0,0.00032876,14]
[332698454,1721454649528,-521.29,0.00032876,14]
[332698455,1721454649538,-500.0,0.00032876,14]
[332698456,1721454649548,-1014.61,0.00032876,14]
[332698457,1721454649558,-577.35647991,0.00032876,14]
[332698458,1721454649568,-500.0,0.00032876,14]
[332698459,1721454649578,-500.0,0.00032876,14]
[332698460,1721454649589,-500.0,0.00032876,14]
[332698461,1721454649599,-500.0,0.00032876,14]
[332698462,1721454649609,-500.0,0.00032876,14]
[332698463,1721454649619,-501.68640876,0.00032876,14]
[332698464,1721454649630,-500.0,0.00032876,14]
[332698465,1721454649640,-500.0,0.00032876,14]
[332698466,1721454649650,-500.0,0.00032876,14]
[332698467,1721454649660,-500.0,0.00032876,14]
[332698468,1721454649670,-500.0,0.00032876,14]
[332698469,1721454649680,-749.61,0.00032876,14]
[332698470,1721454649690,-500.0,0.00032876,14]
[332698471,1721454649700,-500.0,0.00032876,14]
[332698472,1721454649710,-500.0,0.00032876,14]
[332698473,1721454649720,-500.0,0.00032876,14]
[332698474,1721454649730,-500.0,0.00032876,14]
[332698475,1721454649740,-1820.15,0.00032876,14]
[332698476,1721454649749,-500.0,0.00032876,14]
[332698477,1721454649760,-500.0,0.00032876,14]
[332698478,1721454649770,-1418.41,0.00032876,14]
[332698479,1721454649779,-500.0,0.00032876,14]
[332698480,1721454649789,-500.0,0.00032876,14]
[332698481,1721454649798,-500.0,0.00032876,14]
[332698482,1721454649808,-521.44,0.00032876,14]
[332698483,1721454650106,-258.25424221,0.00032876,14]
[332698484,1721454650129,-500.0,0.00032876,14]
[332698485,1721454650139,-500.0,0.00032876,14]
[332698486,1721454650148,-500.0,0.00032876,14]
[332698487,1721454650158,-1558.75,0.00032876,14]
[332698488,1721454650167,-682.47,0.00032876,14]
[332698489,1721454650177,-500.0,0.00032876,14]
[332698490,1721454650186,-500.0,0.00032876,14]
[332698491,1721454650196,-500.0,0.00032876,14]
[332698492,1721454650206,-500.0,0.00032876,14]
[332698493,1721454650215,-500.0,0.00032876,14]
[332698494,1721454650224,-500.0,0.00032876,14]
[332698495,1721454650234,-1023.25,0.00032876,14]
[332698496,1721454650244,-500.0,0.00032876,14]
[332698497,1721454650253,-500.0,0.00032876,14]
[332698498,1721454650263,-500.0,0.00032876,14]
[332698499,1721454650272,-814.54,0.00032876,14]
[332698500,1721454650282,-500.0,0.00032876,14]
[332698501,1721454650291,-500.0,0.00032876,14]
[332698502,1721454650300,-1286.8,0.00032876,14]
[332698503,1721454650313,-500.0,0.00032876,14]
[332698504,1721454650323,-817.73,0.00032876,2]
[332698505,1721454650332,-500.0,0.00032876,14]
[332698506,1721454650342,-1224.39,0.00032876,14]
[332698507,1721454650352,-500.0,0.00032876,14]
[332698508,1721454650363,-500.0,0.00032876,14]
[332698509,1721454650372,-500.0,0.00032876,14]
[332698510,1721454650383,-507.39131739,0.00032876,14]
[332698511,1721454650392,-500.0,0.00032876,14]
[332698512,1721454650402,-500.0,0.00032876,14]
[332698513,1721454650411,-500.0,0.00032876,14]
[332698514,1721454650420,-500.0,0.00032876,14]
[332698515,1721454650430,-500.0,0.00032876,14]
[332698516,1721454650439,-500.0,0.00032876,14]
[332698517,1721454650448,-393.60209849,0.00032876,14]
[332698518,1721454650457,-500.0,0.00032876,14]
[332698519,1721454650467,-500.0,0.00032876,14]
[332698520,1721454650476,-796.27,0.00032876,14]
[332698521,1721454650486,-500.0,0.00032876,14]
[332698522,1721454650495,-500.0,0.00032876,14]
[332698523,1721454650505,-500.0,0.00032876,14]
[332698524,1721454650515,-946.86,0.00032876,14]
[332698525,1721454650524,-901.79,0.00032876,14]
[332698526,1721454650534,-569.28,0.00032876,14]
[332698527,1721454650544,-500.42935032,0.00032876,14]
[332698528,1721454650555,-500.0,0.00032876,14]
[332698529,1721454650564,-500.0,0.00032876,14]
[332698530,1721454650574,-500.0,0.00032876,14]
[332698531,1721454650583,-500.0,0.00032876,14]
[332698532,1721454650593,-500.0,0.00032876,14]
[332698533,1721454650604,-500.0,0.00032876,14]
[332698534,1721454650614,-500.0,0.00032876,14]
[332698535,1721454650624,-500.0,0.00032876,14]
[332698536,1721454650633,-501.39084486,0.00032876,14]
[332698537,1721454650643,-500.0,0.00032876,14]
[332698538,1721454650652,-500.0,0.00032876,14]
[332698539,1721454650661,-500.0,0.00032876,14]
[332698540,1721454650671,-169.91772232,0.00032876,14]
[332698541,1721454650681,-500.0,0.00032876,14]
[332698542,1721454650690,-500.0,0.00032876,14]
[332698543,1721454650700,-500.0,0.00032876,14]
[332698544,1721454650709,-500.0,0.00032876,14]
[332698545,1721454650719,-940.39,0.00032876,14]